bitfinex/quotes_ETHUSD_20250730
["timestamp","ask_amount","ask_price","bid_price","bid_amount"]
[1753905800448,30.0,3778.6,3778.1,0.04]
[1753905800692,30.0,3778.4,3778.1,0.04]
[1753905801246,30.0,3778.2,3775.7,7.0075]
[1753905801446,30.0,3778.2,3775.8,5.08575]
[1753905801645,0.7653,3777.8,3775.8,5.08575]
[1753905801879,3.0,3777.6,3775.8,0.70075]
[1753905802066,6.72727336,3776.7,3775.1,0.04]
[1753905802265,30.0,3776.4,3775.1,0.04]
[1753905802480,3.0,3776.3,3775.1,0.04]
[1753905802683,2.57026461,3776.2,3775.1,0.04]
[1753905802856,3.0,3776.3,3775.1,0.04]
[1753905803182,0.7653,3776.5,3775.2,0.02648866]
[1753905803391,0.7653,3776.5,3775.1,0.06648936]
[1753905803564,30.0,3776.4,3775.1,0.04]
[1753905803883,2.57026461,3776.3,3774.4,0.63472517]
[1753905804073,30.0,3776.4,3774.4,0.63472517]
[1753905804468,30.0,3776.4,3774.6,2.6492867]
[1753905804650,0.7653,3776.5,3774.6,2.64923127]
[1753905805181,0.7653,3776.5,3774.6,2.67572414]
[1753905805492,0.7653,3776.5,3774.7,3.27169453]
[1753905805811,0.7653,3776.5,3775.0,2.6489402]
[1753905806174,0.7653,3776.5,3775.0,2.64899913]
[1753905806478,0.7653,3776.5,3774.9,4.381]
[1753905806789,0.7653,3776.5,3775.0,0.02649006]
[1753905807121,0.7653,3776.5,3775.1,0.44074901]
[1753905807405,0.04,3776.9,3775.1,0.44074901]
[1753905807406,0.04,3776.9,3775.7,2.64849351]
[1753905807578,0.04,3776.9,3776.1,2.6481809]
[1753905807777,0.04,3776.9,3775.4,2.64870652]
[1753905807778,0.04,3776.9,3776.2,7.03515937]
[1753905807977,0.04,3776.9,3776.3,0.7785]
[1753905808321,0.04,3776.9,3776.6,0.55]
[1753905808509,0.04,3776.9,3776.8,0.132]
[1753905809013,0.04,3776.9,3776.8,3.35622156]
[1753905809192,0.04,3776.9,3776.8,3.32974412]
[1753905809392,0.04,3776.9,3776.8,4.10824412]
[1753905809989,0.04,3776.9,3776.8,8.49624412]
[1753905810190,0.04,3776.9,3776.8,9.62685323]
[1753905810712,0.7653,3780.4,3778.8,2.64634275]
[1753905811006,0.7653,3780.4,3778.8,4.399]
[1753905811700,0.7653,3780.4,3778.9,4.402]
[1753905811897,1.5306,3780.4,3779.0,0.02646202]
[1753905812081,0.7653,3780.4,3778.9,4.402]
[1753905812792,30.0,3779.8,3778.7,4.408]
[1753905812991,3.0,3780.3,3778.7,4.408]
[1753905812992,3.37556461,3779.7,3778.7,4.408]
[1753905813198,0.8053,3779.7,3778.7,4.408]
[1753905813533,30.0,3779.6,3778.7,4.405]
[1753905813873,0.8053,3779.7,3778.7,4.405]
[1753905814694,0.8053,3779.7,3778.8,0.02646342]
[1753905814931,0.8053,3779.7,3778.7,4.405]
[1753905815431,0.8053,3779.7,3778.8,4.4]
[1753905817653,0.8053,3779.7,3778.1,0.19478221]
[1753905817654,0.8053,3780.8,3778.7,0.8195]
[1753905818412,0.8053,3779.8,3778.5,4.394]
[1753905819013,30.0,3779.7,3778.5,4.394]
[1753905819212,2.64523647,3780.4,3778.4,0.001]
[1753905819213,30.8053,3779.5,3778.4,0.001]
[1753905819411,0.8053,3779.5,3778.4,0.001]
[1753905819623,3.0,3779.3,3778.4,0.001]
[1753905819802,3.0,3778.8,3778.4,0.001]
[1753905820002,3.8053,3778.5,3778.4,0.001]
[1753905820211,34.3553,3778.5,3778.4,0.001]
[1753905820409,34.3553,3778.5,3775.9,0.8195]
[1753905820410,30.0,3778.3,3775.9,0.8195]
[1753905820713,0.132,3777.3,3776.8,0.132]
[1753905820915,2.57026461,3777.2,3776.8,0.132]
[1753905821125,0.132,3777.3,3776.8,0.132]
[1753905821641,0.8053,3777.4,3775.5,0.02648655]
[1753905821846,0.9373,3777.4,3776.9,0.132]
[1753905822206,0.8053,3777.4,3775.9,0.02648375]
[1753905822401,0.8053,3777.9,3776.2,0.02648164]
[1753905822607,0.8053,3777.9,3777.3,0.132]
[1753905822803,0.8053,3778.5,3777.8,0.132]
[1753905823010,1.91554,3778.5,3777.8,0.132]
[1753905823219,1.91554,3778.5,3778.1,0.132]
[1753905823447,1.91554,3778.5,3776.7,0.8195]
[1753905823448,30.0,3778.4,3778.0,0.132]
[1753905823650,2.04754,3778.5,3776.7,0.8195]
[1753905823651,0.8053,3778.5,3776.7,0.8195]
[1753905823965,3.0,3778.3,3776.7,0.8195]
[1753905824113,3.0,3778.3,3776.3,4.392]
[1753905824114,3.0,3777.9,3776.3,4.392]
[1753905824461,0.8053,3777.7,3776.1,0.04]
[1753905824774,3.8053,3777.2,3776.1,0.04]
[1753905826051,0.55,3776.9,3776.1,0.04]
[1753905826269,0.8053,3776.4,3776.1,0.04]
[1753905827442,3.0,3776.2,3776.1,0.04]
[1753905827607,0.8053,3776.4,3776.1,0.04]
[1753905827947,33.0,3776.2,3776.1,0.04]
[1753905828147,35.57026461,3776.2,3776.1,0.04]
[1753905828310,35.71135133,3776.2,3776.1,0.04]
[1753905828749,35.71135133,3776.2,3775.1,0.03]
[1753905828750,5.57026461,3776.2,3775.1,0.03]
[1753905828915,0.8053,3776.4,3775.1,0.03]
[1753905828916,30.0,3775.9,3775.1,0.03]
[1753905829113,3.0,3776.2,3775.1,0.03]
[1753905829415,0.7837,3775.6,3775.1,0.03]
[1753905829905,3.0,3775.2,3775.1,0.03]
[1753905830109,33.0,3775.2,3775.1,0.03]
[1753905830341,35.57026461,3775.2,3775.1,0.03]
[1753905830711,5.57026461,3775.2,3775.1,0.03]
[1753905830949,30.0,3775.5,3775.1,0.03]
[1753905831151,3.0,3775.5,3775.1,0.03]
[1753905831310,33.7837,3775.2,3775.1,0.03]
[1753905831510,36.35396461,3775.2,3775.1,0.03]
[1753905832150,3.7837,3775.2,3775.1,0.03]
[1753905834616,0.7837,3775.7,3775.1,0.03]
[1753905834814,0.1328,3775.9,3775.4,0.1328]
[1753905836656,0.1328,3777.0,3775.8,0.1328]
[1753905836657,0.9157,3776.7,3775.8,0.1328]
[1753905837015,0.7837,3776.7,3775.1,0.05648936]
[1753905837223,0.7837,3776.7,3776.2,0.1328]
[1753905837851,1.32879464,3776.7,3776.2,0.1328]
[1753905838167,30.0,3776.2,3775.1,0.03]
[1753905838340,0.1328,3775.8,3775.3,0.1328]
[1753905839226,0.1328,3775.8,3775.1,0.03]
[1753905839425,0.1328,3775.8,3775.1,0.1628]
[1753905840389,1.32879464,3776.7,3775.2,0.02648866]
[1753905840668,0.04,3777.9,3775.4,0.8149]
[1753905840960,0.04,3777.9,3776.5,0.132]
[1753905840961,0.132,3777.2,3776.5,0.132]
[1753905841162,0.9157,3777.4,3776.8,0.132]
[1753905841526,30.0,3777.3,3775.7,0.001]
[1753905841762,30.0,3776.8,3776.4,0.1328]
[1753905841953,0.132,3776.6,3776.0,0.1328]
[1753905842667,0.7837,3777.4,3775.7,0.001]
[1753905842851,0.7837,3777.4,3775.7,0.02748515]
[1753905843252,0.7837,3777.4,3775.8,0.7594]
[1753905843866,30.0,3777.3,3776.1,0.001]
[1753905844039,2.57026461,3777.2,3776.1,0.001]
[1753905844242,0.002,3777.3,3776.1,0.001]
[1753905844564,0.002,3777.3,3776.2,0.7594]
[1753905844767,0.002,3777.3,3776.3,0.02648094]
[1753905845752,0.002,3777.3,3776.2,0.7594]
[1753905846252,0.002,3777.3,3776.2,0.78588164]
[1753905846467,0.002,3777.3,3776.3,0.34351067]
[1753905846970,0.002,3777.3,3776.2,0.78588164]
[1753905847129,0.002,3777.3,3776.2,0.7594]
[1753905848032,0.24973037,3777.3,3776.2,0.7594]
[1753905848276,0.24773037,3777.2,3776.2,0.7594]
[1753905848461,0.24773037,3777.1,3776.2,0.7594]
[1753905848651,0.002,3777.3,3776.2,0.7594]
[1753905849371,0.49801232,3777.3,3776.2,5.1294]
[1753905849572,0.49601232,3777.2,3776.3,0.51304]
[1753905849731,0.49601232,3777.1,3776.3,0.51304]
[1753905849936,0.49601232,3777.0,3776.2,0.7594]
[1753905850170,0.24800616,3776.9,3776.2,0.7594]
[1753905850372,0.49594712,3776.8,3776.2,0.7594]
[1753905850574,0.49594712,3776.7,3776.2,0.7594]
[1753905850776,0.24800616,3776.6,3776.2,1.27214]
[1753905850940,0.002,3777.3,3776.2,1.27214]
[1753905851341,0.2499303,3777.3,3776.2,1.27214]
[1753905851544,0.24793041,3777.2,3776.2,0.7594]
[1753905851844,0.49582335,3777.1,3776.2,0.7594]
[1753905852148,0.24789294,3777.0,3776.2,0.7594]
[1753905852366,0.24789294,3776.9,3776.2,0.7594]
[1753905852575,0.002,3777.3,3776.3,0.54156917]
[1753905852891,0.002,3777.3,3776.8,0.132]
[1753905853100,0.002,3777.3,3776.3,0.54156917]
[1753905853101,0.002,3777.3,3776.6,0.7594]
[1753905853392,0.002,3777.3,3777.2,0.132]
[1753905854063,0.24982421,3777.3,3777.2,0.132]
[1753905854265,0.002,3777.3,3777.2,0.132]
[1753905854464,0.002,3777.3,3777.2,0.8914]
[1753905856599,0.002,3777.3,3777.2,0.132]
[1753905859258,0.24987152,3777.3,3777.2,0.132]
[1753905860506,30.0,3777.2,3776.6,0.132]
[1753905860651,2.81813613,3777.1,3776.6,0.132]
[1753905860851,2.70226461,3777.1,3776.6,0.132]
[1753905861053,0.132,3777.1,3776.6,0.132]
[1753905861273,0.7594,3777.0,3776.6,0.132]
[1753905861477,3.0,3776.8,3776.1,0.001]
[1753905861685,3.0,3776.6,3776.2,0.1328]
[1753905861902,0.132,3776.7,3776.1,0.1338]
[1753905862203,30.0,3776.4,3776.1,0.001]
[1753905862403,2.57026461,3776.3,3776.1,0.001]
[1753905862566,3.132,3776.5,3776.1,0.001]
[1753905862567,3.0,3776.5,3776.1,0.001]
[1753905862772,0.132,3776.7,3776.2,0.1328]
[1753905863501,3.0,3776.8,3776.5,0.132]
[1753905864267,1.08494,3776.7,3776.5,0.132]
[1753905865269,0.132,3776.6,3776.1,0.001]
[1753905865678,30.0,3776.5,3776.1,0.001]
[1753905867597,0.132,3776.6,3776.1,0.001]
[1753905867790,0.421694,3776.5,3776.1,0.001]
[1753905868100,3.0,3776.8,3776.5,0.132]
[1753905868993,7.09,3776.9,3776.5,0.132]
[1753905869196,0.002,3777.5,3776.5,0.132]
[1753905869197,0.7594,3777.4,3776.5,0.132]
[1753905869379,0.002,3777.5,3776.2,0.7797]
[1753905870582,0.002,3777.5,3776.3,0.02648094]
[1753905870766,0.002,3777.5,3776.4,3.42772457]
[1753905870962,0.002,3777.5,3776.6,3.42752428]
[1753905871166,0.002,3777.5,3776.7,3.42749832]
[1753905871362,0.002,3777.5,3776.7,3.42750417]
[1753905871598,0.002,3777.5,3776.8,0.02647744]
[1753905871897,0.002,3777.5,3776.7,0.7797]
[1753905872103,0.002,3777.5,3776.8,0.42062599]
[1753905873168,0.002,3777.5,3776.7,0.7797]
[1753905875104,0.002,3777.5,3776.8,0.02647744]
[1753905875268,0.002,3777.5,3776.7,0.7797]
[1753905877100,0.002,3777.5,3776.7,0.80617814]
[1753905877893,0.002,3777.5,3776.7,0.7797]
[1753905878419,0.002,3777.5,3776.8,0.36923846]
[1753905878617,0.002,3777.5,3776.7,0.7797]
[1753905878918,0.002,3777.5,3776.7,0.9810408]
[1753905879274,0.002,3777.5,3777.2,0.132]
[1753905880482,0.002,3777.5,3777.2,4.446]
[1753905880680,0.002,3777.5,3777.2,4.8906]
[1753905881081,0.002,3777.5,3777.2,4.91707463]
[1753905881598,0.002,3777.5,3777.2,4.8906]
[1753905883490,0.002,3777.5,3777.2,5.6863]
[1753905883898,0.002,3777.5,3777.2,0.132]
[1753905884820,0.002,3777.5,3777.1,4.304]
[1753905885122,0.002,3777.5,3776.7,0.7957]
[1753905885325,0.002,3777.5,3776.8,4.306]
[1753905885504,0.7825,3777.4,3776.8,4.306]
[1753905885703,0.7825,3777.4,3776.1,0.001]
[1753905886059,0.7825,3777.4,3776.6,4.304]
[1753905886193,0.7825,3777.4,3776.1,0.001]
[1753905886528,0.7825,3777.4,3776.6,4.304]
[1753905887089,3.0,3777.1,3776.1,0.001]
[1753905887392,30.0,3776.5,3776.1,0.001]
[1753905887730,0.7825,3776.4,3776.1,0.001]
[1753905887927,3.0,3776.2,3776.1,0.001]
[1753905888149,33.7825,3776.2,3776.1,0.001]
[1753905888489,0.7825,3776.2,3776.1,0.001]
[1753905888693,30.7825,3776.2,3776.1,0.001]
[1753905888897,36.35276461,3776.2,3776.1,0.001]
[1753905889201,6.35276461,3776.2,3776.1,0.001]
[1753905889397,0.7825,3777.2,3776.1,0.001]
[1753905889644,0.002,3777.3,3776.2,0.7957]
[1753905889875,0.002,3777.3,3776.3,0.02648094]
[1753905890575,0.002,3777.3,3776.3,2.67456337]
[1753905890760,0.002,3777.3,3776.4,0.79807493]
[1753905890961,0.002,3777.3,3776.5,0.02647954]
[1753905891448,0.002,3777.3,3776.4,0.79807493]
[1753905891645,0.002,3777.3,3776.4,0.82455517]
[1753905892449,0.002,3777.3,3776.4,0.79807493]
[1753905892645,0.002,3777.3,3776.4,0.82455517]
[1753905892869,0.002,3777.3,3776.6,0.7957]
[1753905893074,0.002,3777.3,3776.7,0.02647814]
[1753905893269,0.002,3777.3,3776.7,2.67424094]
[1753905893475,0.002,3777.3,3776.7,0.57647814]
[1753905893774,0.002,3777.3,3777.2,2.64746372]
[1753905893947,0.002,3777.3,3777.2,9.56835372]
[1753905894151,0.002,3777.3,3777.2,9.54187909]
[1753905894562,0.002,3777.3,3777.2,12.54187909]
[1753905894766,0.002,3777.3,3777.2,12.67387909]
[1753905898387,1e-08,3777.5,3777.4,6.95372355]
[1753905898766,1e-08,3777.5,3777.4,7.08572355]
[1753905898965,0.04,3777.9,3777.8,6.95344325]
[1753905899166,0.04,3777.9,3777.8,18.10814924]
[1753905899365,0.046,3779.9,3778.8,3.40274275]
[1753905899573,0.046,3779.9,3778.8,7.73320617]
[1753905899889,0.046,3779.9,3778.8,7.83874275]
[1753905900985,0.046,3779.9,3778.8,5.1924]
[1753905901192,0.046,3779.9,3778.8,11.35798275]
[1753905901553,0.046,3779.9,3778.8,0.132]
[1753905901756,0.827,3779.3,3778.7,4.303]
[1753905901950,0.827,3779.3,3778.8,4.303]
[1753905902565,0.827,3779.7,3778.8,4.303]
[1753905903998,0.046,3779.9,3779.8,2.64564262]
[1753905904197,0.046,3779.9,3779.8,14.79946241]
[1753905904409,0.01167641,3781.2,3780.1,0.55]
[1753905904608,0.01167641,3781.2,3780.2,0.02645362]
[1753905904815,0.01167641,3781.2,3780.2,2.67176838]
[1753905905037,0.01167641,3781.2,3780.3,0.02645292]
[1753905905314,0.01167641,3781.2,3780.3,4.306]
[1753905905626,0.01167641,3781.2,3780.8,2.64494286]
[1753905905912,0.01167641,3781.2,3780.8,8.28069228]
[1753905906214,0.01167641,3781.2,3781.1,3.94703301]
[1753905906387,0.01167641,3781.2,3781.1,1.52964922]
[1753905906725,0.01167641,3781.2,3781.1,0.95320189]
[1753905906875,0.01167641,3781.2,3781.1,5.26320189]
[1753905907077,0.01167641,3781.2,3781.1,0.95320189]
[1753905907324,0.01167641,3781.2,3781.1,4.50990189]
[1753905907693,0.01167641,3781.2,3781.1,4.309]
[1753905908225,0.01167641,3781.2,3780.6,6.36]
[1753905908428,0.01167641,3781.2,3780.7,4.309]
[1753905908711,0.8008,3781.1,3779.6,0.7523]
[1753905909014,0.8008,3781.1,3779.7,4.308]
[1753905909399,0.8008,3781.1,3779.8,0.02645642]
[1753905909713,0.8008,3781.1,3779.9,4.306]
[1753905909917,0.8008,3781.1,3779.6,0.7523]
[1753905910099,0.8008,3781.1,3779.7,4.305]
[1753905910301,30.0,3780.8,3779.7,4.305]
[1753905910620,30.0,3780.8,3779.1,0.04]
[1753905910621,3.0,3780.5,3779.1,4.346]
[1753905910910,30.0,3780.6,3779.1,4.346]
[1753905910911,3.8008,3780.6,3779.1,4.346]
[1753905911084,3.0,3780.4,3779.1,4.346]
[1753905911289,0.8008,3780.3,3779.1,0.04]
[1753905911492,30.0,3780.2,3779.1,4.345]
[1753905911675,0.8008,3780.3,3779.2,0.02646062]
[1753905911877,30.0,3780.2,3779.1,4.345]
[1753905912074,0.9328,3780.3,3779.7,0.132]
[1753905912597,30.0,3780.2,3779.1,4.345]
[1753905912897,2.6447461,3781.1,3779.1,4.345]
[1753905912898,30.0,3779.6,3779.1,0.04]
[1753905913281,0.132,3779.7,3779.1,0.04]
[1753905913811,3.0,3780.9,3779.1,0.04]
[1753905913812,3.8008,3779.5,3779.1,0.04]
[1753905913974,30.0,3779.4,3779.1,0.04]
[1753905914477,0.01167641,3781.2,3779.2,4.308]
[1753905914676,30.0,3781.1,3779.3,0.02645992]
[1753905914895,3.0,3780.8,3779.2,4.326]
[1753905915232,30.0,3780.9,3779.2,4.326]
[1753905915385,3.0,3780.8,3779.2,4.326]
[1753905915584,3.0,3780.8,3779.3,0.02645992]
[1753905915818,3.0,3780.8,3779.1,0.04]
[1753905915983,0.8008,3781.0,3779.1,0.04]
[1753905916294,30.0,3780.9,3779.2,0.02646062]
[1753905916494,5.57026461,3780.8,3779.2,0.29772178]
[1753905916829,0.8008,3781.0,3779.2,0.27126116]
[1753905917030,3.0,3780.8,3779.1,0.04]
[1753905917209,0.8008,3780.4,3779.1,0.04]
[1753905918011,0.7645,3781.1,3779.4,0.55]
[1753905918219,0.7645,3781.1,3779.5,6.19718087]
[1753905918418,0.7645,3781.1,3779.7,2.64568733]
[1753905918619,0.7645,3781.1,3779.5,6.17072235]
[1753905918937,0.7645,3781.1,3779.5,6.36613845]
[1753905919236,0.7645,3781.1,3779.6,1.33494226]
[1753905919536,0.01167641,3781.2,3779.6,1.33494226]
[1753905919537,0.01167641,3781.2,3780.0,0.55]
[1753905919836,0.01167641,3781.2,3779.9,6.71870599]
[1753905919837,0.01167641,3781.2,3780.7,0.55]
[1753905920002,0.01167641,3781.2,3780.8,4.64650173]
[1753905920393,0.01167641,3781.2,3780.8,7.29143214]
[1753905920729,0.01167641,3781.2,3780.8,4.64650173]
[1753905920929,0.01167641,3781.2,3780.8,7.2914311]
[1753905921161,0.01167641,3781.2,3780.8,4.64650173]
[1753905921336,0.01167641,3781.2,3780.9,0.72915604]
[1753905923745,0.01167641,3781.2,3781.1,0.132]
[1753905927108,0.77617641,3781.2,3780.0,0.7966]
[1753905927357,0.77617641,3781.2,3777.6,0.1]
[1753905927358,0.77617641,3781.2,3779.1,0.8366]
[1753905927648,3.0,3780.8,3779.5,4.312]
[1753905927860,3.0,3780.8,3779.1,0.8366]
[1753905927861,2.57026461,3780.7,3779.1,0.8366]
[1753905928032,0.7645,3780.6,3779.2,4.313]
[1753905928341,0.7645,3780.6,3779.1,0.8366]
[1753905928707,30.0,3780.5,3779.1,0.04]
[1753905928929,30.0,3780.3,3779.1,0.04]
[1753905929104,0.7645,3780.2,3779.1,0.04]
[1753905929322,30.0,3780.1,3779.1,0.04]
[1753905929502,30.0,3780.1,3779.1,0.041]
[1753905929904,0.7645,3780.2,3779.1,0.041]
[1753905930348,3.0,3780.8,3779.2,0.02646062]
[1753905930509,1.01143797,3780.7,3779.1,0.041]
[1753905930708,0.7645,3780.7,3779.1,0.041]
[1753905931333,30.0,3780.6,3779.1,0.041]
[1753905932931,3.0,3780.4,3779.1,0.06746132]
[1753905933244,0.7645,3780.7,3779.3,0.7966]
[1753905933558,3.0,3780.8,3779.4,2.67238185]
[1753905933711,0.7705,3781.6,3779.9,3.44211182]
[1753905933908,0.7705,3781.6,3780.1,3.19541234]
[1753905934113,0.7705,3781.6,3780.1,0.55]
[1753905934351,0.7705,3781.6,3780.1,3.19542188]
[1753905934676,30.0,3781.1,3779.0,0.7966]
[1753905934821,0.7705,3781.6,3779.0,0.7966]
[1753905934822,3.0,3780.8,3779.0,0.7966]
[1753905935009,0.7645,3780.7,3779.0,0.7966]
[1753905935209,0.7645,3780.7,3779.1,0.55986]
[1753905935624,0.7645,3780.7,3779.1,0.58632132]
[1753905936010,0.7645,3780.7,3779.1,0.55986]
[1753905936211,0.7645,3780.7,3779.1,0.58632132]
[1753905936414,0.7645,3780.7,3779.2,0.57339213]
[1753905936751,0.7645,3780.7,3779.1,0.041]
[1753905937132,0.132,3780.4,3779.9,0.132]
[1753905938313,0.8965,3780.0,3779.2,0.132]
[1753905938521,0.132,3779.5,3779.1,0.041]
[1753905938785,0.7645,3779.7,3779.1,0.041]
[1753905938786,30.0,3779.6,3779.1,0.041]
[1753905938928,0.132,3779.2,3779.1,0.041]
[1753905939246,0.8965,3779.2,3779.1,0.041]
[1753905942772,0.7645,3779.2,3779.1,0.041]
[1753905943144,30.0,3780.1,3779.1,0.041]
[1753905943344,0.132,3779.6,3779.1,0.041]
[1753905943580,0.7645,3780.3,3779.1,0.041]
[1753905943872,30.0,3780.0,3779.1,0.041]
[1753905944061,0.132,3779.8,3779.3,0.132]
[1753905944671,30.0,3779.7,3779.3,0.132]
[1753905944872,33.7645,3779.5,3779.1,0.041]
[1753905945028,0.8965,3779.5,3779.1,0.041]
[1753905945233,30.0,3779.4,3779.1,0.041]
[1753905945731,0.7645,3780.3,3779.1,0.041]
[1753905945933,0.132,3780.2,3779.3,0.132]
[1753905946132,0.132,3780.2,3779.6,0.132]
[1753905948048,0.53582932,3780.2,3779.6,0.132]
[1753905948249,3.0,3780.0,3779.1,0.041]
[1753905948498,0.132,3779.6,3779.1,0.173]
[1753905950085,0.8166,3780.1,3779.1,0.041]
[1753905950250,0.8166,3780.1,3779.5,0.132]
[1753905950601,0.96602225,3780.1,3779.5,0.132]
[1753905951290,0.8166,3780.1,3779.5,0.132]
[1753905951644,0.8166,3780.1,3779.1,0.8243]
[1753905951645,0.8166,3780.7,3779.1,0.8243]
[1753905951876,0.002,3780.9,3780.1,0.7833]
[1753905952074,0.002,3780.9,3780.8,0.132]
[1753905952493,0.002,3780.9,3780.1,0.7833]
[1753905952682,0.002,3780.9,3780.4,0.132]
[1753905952985,0.134,3780.9,3780.4,0.132]
[1753905953792,0.002,3780.9,3779.7,0.02645712]
[1753905953991,0.002,3780.9,3780.8,0.132]
[1753905954297,0.002,3780.9,3780.8,0.9153]
[1753905959315,0.002,3780.9,3780.6,0.7833]
[1753905960368,0.002,3780.9,3779.5,6.71870599]
[1753905960612,0.002,3780.9,3779.3,2.64598691]
[1753905960613,0.002,3780.9,3779.6,0.7833]
[1753905960783,0.002,3780.9,3779.6,5.0963]
[1753905960964,0.24949587,3780.9,3779.7,4.315]
[1753905961166,0.002,3780.9,3779.8,0.50983]
[1753905961375,0.24959098,3780.9,3779.7,4.314]
[1753905961864,0.24959098,3780.9,3779.6,0.7833]
[1753905962065,0.002,3780.9,3779.6,5.0953]
[1753905962261,0.24958351,3780.9,3779.7,0.50953]
[1753905962964,0.002,3780.9,3779.7,0.53598712]
[1753905963276,0.002,3780.9,3779.8,4.31]
[1753905963469,30.0,3780.7,3779.2,4.31]
[1753905963664,2.57026461,3780.6,3779.3,0.02645992]
[1753905963880,0.8166,3780.8,3779.3,0.02645992]
[1753905964178,0.8166,3780.8,3779.2,4.31]
[1753905964179,0.8166,3780.8,3779.4,0.7833]
[1753905964902,0.8166,3780.8,3779.5,0.02645852]
[1753905966019,0.002,3780.9,3779.5,3.22226158]
[1753905966352,0.002,3780.9,3779.6,0.66515112]
[1753905966471,0.002,3780.9,3779.9,0.55]
[1753905966673,0.002,3780.9,3780.0,3.19549781]
[1753905966921,0.002,3780.9,3780.2,3.19535792]
[1753905967099,0.002,3780.9,3780.3,0.80975292]
[1753905967310,0.002,3780.9,3780.5,0.55]
[1753905967875,0.002,3780.9,3780.8,3.97824286]
[1753905968074,0.01167641,3781.2,3781.1,3.19473301]
[1753905968424,0.01167641,3781.2,3781.1,11.31348034]
[1753905968633,0.01167641,3781.2,3781.1,11.28703301]
[1753905968772,0.01167641,3781.2,3781.1,12.96433981]
[1753905969196,0.01167641,3781.2,3781.1,8.78733981]
[1753905969520,0.01167641,3781.2,3781.1,13.09433981]
[1753905970133,0.01167641,3781.2,3781.1,7.49973301]
[1753905970417,0.09327068,3783.2,3782.2,0.55]
[1753905970607,1.0031,3783.1,3782.4,0.7833]
[1753905970807,1.0031,3783.0,3782.4,0.7833]
[1753905970992,1.0031,3782.9,3782.5,0.51197389]
[1753905971194,1.0031,3782.8,3782.5,0.51197389]
[1753905971430,0.17960246,3783.9,3783.0,0.55]
[1753905971431,0.5522,3783.6,3783.0,0.55]
[1753905971636,0.04,3783.9,3783.1,14.22004082]
[1753905971819,0.5522,3783.5,3783.2,4.87500168]
[1753905972018,0.04,3783.9,3783.3,0.55]
[1753905972187,0.04,3784.9,3783.8,0.7833]
[1753905972388,1.0031,3784.8,3784.4,1.3333]
[1753905972585,1.0031,3784.7,3784.6,0.55]
[1753905972814,0.04,3784.9,3784.6,0.55]
[1753905972815,0.04,3784.9,3784.8,2.64214753]
[1753905973015,0.04,3784.9,3784.8,0.02642147]
[1753905973287,0.04,3784.9,3784.7,0.7833]
[1753905973485,0.5522,3784.8,3784.4,0.7833]
[1753905973701,0.4509,3784.7,3784.6,0.55]
[1753905973900,0.5522,3784.7,3784.6,0.55]
[1753905974103,1.0031,3784.7,3784.5,4.324]
[1753905974585,1.0031,3784.6,3784.5,4.324]
[1753905975184,1.0031,3784.6,3784.5,4.327]
[1753905975417,1.0031,3784.6,3784.0,4.327]
[1753905975609,1.0031,3784.5,3784.1,4.328]
[1753905975809,1.0031,3784.4,3784.0,4.328]
[1753905976126,1.0031,3784.3,3784.0,4.328]
[1753905976470,0.04,3784.9,3783.3,6.357]
[1753905976471,1.0031,3784.2,3783.3,6.357]
[1753905976583,1.0031,3784.2,3783.7,4.326]
[1753905976788,0.4629,3784.1,3783.9,0.7833]
[1753905977025,0.9245,3784.1,3784.0,4.328]
[1753905977324,0.4629,3784.1,3784.0,4.83913]
[1753905977492,0.4629,3784.1,3784.0,4.328]
[1753905977709,0.9245,3784.1,3784.0,4.328]
[1753905977889,0.9245,3784.1,3783.4,4.328]
[1753905978087,0.9245,3784.0,3783.4,4.328]
[1753905978336,0.9245,3783.9,3783.4,4.328]
[1753905978638,0.9245,3783.8,3783.0,4.328]
[1753905978790,3.0,3783.5,3782.7,4.328]
[1753905979124,1.7118,3783.7,3782.1,0.04]
[1753905979125,0.9245,3783.4,3782.4,4.328]
[1753905979326,0.17118,3783.4,3782.4,4.328]
[1753905979501,0.9245,3783.3,3782.4,4.328]
[1753905979833,0.9245,3783.3,3782.1,0.04]
[1753905979834,0.9245,3783.2,3782.1,0.04]
[1753905980002,3.0,3783.0,3782.1,0.04]
[1753905980330,30.0,3782.6,3782.2,0.132]
[1753905980533,0.132,3782.7,3782.2,0.132]
[1753905980851,0.132,3782.5,3782.1,0.04]
[1753905981000,0.9245,3782.4,3782.1,0.04]
[1753905981329,0.9245,3782.3,3782.1,0.04]
[1753905981737,0.9245,3782.2,3782.1,0.04]
[1753905982091,0.4629,3782.2,3782.1,0.172]
[1753905982504,0.4629,3782.8,3782.1,4.9416]
[1753905982709,0.4629,3782.8,3782.2,0.5755341]
[1753905982888,0.4629,3782.8,3782.7,0.132]
[1753905983092,0.9245,3782.8,3782.2,0.5755341]
[1753905983287,0.4629,3782.7,3782.2,0.5755341]